bitfinex-derivatives/quotes_BTCF0:USTF0_20250424
["timestamp","ask_amount","ask_price","bid_price","bid_amount"]
[1745467983146,0.1080527,92527.0,92511.0,0.0540354]
[1745467983348,0.4688527,92527.0,92507.0,0.085238]
[1745467983645,0.72845227,92527.0,92515.0,0.108066]
[1745467983844,0.1080679,92515.0,92514.0,0.1080669]
[1745467984242,0.1686679,92515.0,92514.0,0.1080669]
[1745467984646,0.0606,92515.0,92514.0,0.1080669]
[1745467985642,0.0616,92515.0,92514.0,0.1120669]
[1745467986043,0.0616,92515.0,92514.0,0.1150669]
[1745467987647,0.0616,92515.0,92514.0,0.1462669]
[1745467987849,0.0316,92515.0,92514.0,0.1462669]
[1745467988751,0.0316,92515.0,92514.0,0.1452669]
[1745467988945,0.0623,92515.0,92514.0,0.1452669]
[1745467992246,0.0316,92515.0,92514.0,0.1452669]
[1745467992446,0.0316,92515.0,92514.0,0.1432669]
[1745467992641,0.0316,92515.0,92514.0,0.1452669]
[1745467992846,0.001,92515.0,92514.0,0.1452669]
[1745467993247,0.0331,92522.0,92521.0,0.1080597]
[1745467993656,0.3608,92527.0,92526.0,0.1080539]
[1745467994650,0.3608,92527.0,92526.0,0.1690539]
[1745467996843,0.3608,92527.0,92526.0,0.1710539]
[1745467997454,0.3608,92527.0,92526.0,0.1690539]
[1745467997658,0.3608,92527.0,92526.0,0.1710539]
[1745467998061,0.3608,92527.0,92526.0,0.1720539]
[1745467998250,0.10813945,92536.0,92535.0,0.1080434]
[1745467999043,0.10813945,92536.0,92535.0,0.1732434]
[1745467999243,0.10813945,92538.0,92535.0,0.0652]
[1745467999448,0.10813945,92538.0,92537.0,0.1080411]
[1745468001050,0.10913945,92538.0,92537.0,0.1080411]
[1745468001658,0.11113945,92538.0,92537.0,0.1080411]
[1745468001954,0.13481765,92546.0,92545.0,0.1080317]
[1745468002357,0.3608,92562.0,92554.0,0.1080212]
[1745468003246,0.3608,92562.0,92554.0,0.1690212]
[1745468003646,0.16380398,92567.0,92566.0,0.1080072]
[1745468004559,0.16218156,92567.0,92566.0,0.4688072]
[1745468004762,0.0321,92576.0,92575.0,0.1079967]
[1745468005161,0.0400592,92576.0,92575.0,0.1079967]
[1745468006262,0.0079592,92576.0,92575.0,0.1079967]
[1745468006460,0.0312,92583.0,92582.0,0.1079885]
[1745468007151,0.0052,92584.0,92583.0,0.1079874]
[1745468007551,0.0052,92584.0,92583.0,0.4687874]
[1745468007751,0.0052,92584.0,92583.0,0.4627874]
[1745468007960,0.0052,92584.0,92583.0,0.4547874]
[1745468008355,0.0092,92584.0,92583.0,0.4854874]
[1745468008561,0.0092,92584.0,92583.0,0.5178874]
[1745468009053,0.0312,92592.0,92591.0,0.107978]
[1745468009557,0.0312,92592.0,92591.0,0.468778]
[1745468010059,0.0312,92592.0,92591.0,0.531878]
[1745468010259,0.2079679,92600.0,92591.0,0.531878]
[1745468010260,0.1,92600.0,92599.0,0.1079687]
[1745468010455,0.2079676,92600.0,92599.0,0.1079687]
[1745468010650,0.2380676,92600.0,92599.0,0.1069687]
[1745468010862,0.2380676,92600.0,92599.0,0.1049687]
[1745468011459,0.2400676,92600.0,92599.0,0.1049687]
[1745468011659,0.24802426,92600.0,92599.0,0.1049687]
[1745468012360,0.25002426,92600.0,92599.0,0.1049687]
[1745468013059,0.24802426,92600.0,92599.0,0.1049687]
[1745468013266,0.25002426,92600.0,92599.0,0.1049687]
[1745468014260,0.25002426,92600.0,92597.0,0.0539851]
[1745468014261,0.107971,92597.0,92596.0,0.00028]
[1745468014467,0.107971,92597.0,92596.0,0.1079722]
[1745468014763,0.1392687,92599.0,92598.0,0.1079699]
[1745468014952,0.1694687,92599.0,92598.0,0.1079699]
[1745468015757,0.1694687,92599.0,92598.0,0.1059699]
[1745468016570,0.1714687,92599.0,92598.0,0.1059699]
[1745468017768,0.1734687,92599.0,92598.0,0.1059699]
[1745468020961,0.0353,92599.0,92598.0,0.1059699]
[1745468021264,0.0353,92599.0,92598.0,0.4667699]
[1745468022569,0.0333,92599.0,92598.0,0.4667699]
[1745468022767,0.0343,92599.0,92598.0,0.4667699]
[1745468026471,0.4001821,92615.0,92598.0,0.3608]
[1745468026768,0.1079525,92613.0,92612.0,0.0539763]
[1745468026977,0.35594477,92615.0,92614.0,0.1079512]
[1745468027280,0.35415093,92615.0,92614.0,0.1079512]
[1745468027771,0.1079395,92625.0,92624.0,0.0539693]
[1745468028071,0.1079395,92625.0,92624.0,0.0842693]
[1745468028276,0.1079395,92625.0,92624.0,0.1158693]
[1745468028476,0.1079395,92625.0,92624.0,0.1148693]
[1745468028676,0.1079368,92627.0,92626.0,0.1079361]
[1745468028878,0.11601236,92627.0,92626.0,0.1079361]
[1745468029066,0.11601236,92627.0,92626.0,0.1342361]
[1745468029268,0.11601236,92627.0,92626.0,0.1662361]
[1745468029472,0.00807556,92627.0,92626.0,0.1652361]
[1745468029775,0.37549834,92632.0,92631.0,0.1079314]
[1745468029776,0.0052,92632.0,92631.0,0.1079314]
[1745468030078,0.01334169,92632.0,92631.0,0.1069314]
[1745468030267,0.0052,92632.0,92631.0,0.1069314]
[1745468030461,0.0052,92632.0,92631.0,0.1718314]
[1745468031474,0.0011,92637.0,92636.0,0.1079256]
[1745468031681,0.0324,92654.0,92642.0,0.0539589]
[1745468031976,0.1079065,92653.0,92649.0,0.1079104]
[1745468032473,0.3608,92670.0,92650.0,0.0539543]
[1745468032682,0.3932,92670.0,92663.0,0.1078941]
[1745468033178,0.4253,92670.0,92663.0,0.1078941]
[1745468033573,0.4253,92670.0,92666.0,0.1078907]
[1745468034274,0.00902219,92667.0,92659.0,0.3608]
[1745468034468,0.0645,92666.0,92661.0,0.0314]
[1745468034669,0.0645,92666.0,92665.0,0.1078918]
[1745468035575,0.0321,92666.0,92665.0,0.1078918]
[1745468036069,0.0011,92667.0,92666.0,0.1078907]
[1745468036869,0.0011,92667.0,92666.0,0.1702907]
[1745468037670,0.00925326,92667.0,92666.0,0.1742907]
[1745468037865,0.0011,92667.0,92666.0,0.1742907]
[1745468038671,0.0011,92667.0,92666.0,0.1802907]
[1745468039770,0.0011,92667.0,92666.0,0.0724]
[1745468040166,0.0011,92667.0,92666.0,0.1802907]
[1745468040474,0.00908245,92667.0,92666.0,0.1802907]
[1745468040673,0.0011,92667.0,92666.0,0.1802907]
[1745468042868,0.36708594,92667.0,92644.0,0.3608]
[1745468043073,0.0539503,92658.0,92644.0,0.3923]
[1745468043283,0.1079048,92654.0,92652.0,0.1079065]
[1745468043467,0.0947,92653.0,92652.0,0.1079065]
[1745468043672,0.202632,92653.0,92652.0,0.1079065]
[1745468044678,0.202632,92653.0,92652.0,0.1139065]
[1745468045381,0.21078794,92653.0,92652.0,0.1139065]
[1745468045585,0.00815594,92653.0,92652.0,0.1139065]
[1745468045884,0.0306,92656.0,92655.0,0.1079035]
[1745468047171,0.0306,92656.0,92655.0,0.1119035]
[1745468047883,0.0306,92656.0,92655.0,0.1179035]
[1745468048178,0.03861992,92656.0,92655.0,0.1179035]
[1745468048779,0.00801992,92656.0,92655.0,0.1179035]
[1745468048971,0.0328,92666.0,92665.0,0.1078918]
[1745468049373,0.0652,92666.0,92665.0,0.1078918]
[1745468049680,0.1730907,92666.0,92665.0,0.1078918]
[1745468049874,0.0324,92666.0,92665.0,0.1078918]
[1745468050078,0.3608,92670.0,92666.0,0.1078907]
[1745468050276,0.3624197,92678.0,92666.0,0.1078907]
[1745468050879,0.3624197,92678.0,92666.0,0.1708907]
[1745468051469,0.00800859,92670.0,92666.0,0.1738907]
[1745468051674,0.00800859,92670.0,92666.0,0.1778907]
[1745468052274,0.0016197,92678.0,92677.0,0.1078778]
[1745468054277,1e-07,92680.0,92679.0,0.1078755]
[1745468054585,1e-07,92680.0,92679.0,0.2157755]
[1745468054780,1e-07,92680.0,92679.0,0.2467755]
[1745468054976,1e-07,92680.0,92679.0,0.1712755]
[1745468056676,1e-07,92680.0,92679.0,0.1752755]
[1745468057073,1e-07,92680.0,92679.0,0.1792755]
[1745468058082,1e-07,92680.0,92679.0,0.2871755]
[1745468059084,1e-07,92680.0,92679.0,0.1792755]
[1745468059982,0.00033643,92680.0,92679.0,0.1792755]
[1745468061486,0.00033643,92680.0,92679.0,0.2720355]
[1745468062587,0.0011,92697.0,92696.0,0.1078557]
[1745468062785,0.0011,92697.0,92696.0,0.4686557]
[1745468063987,0.0011,92697.0,92696.0,0.4696557]
[1745468064382,0.0011,92697.0,92696.0,0.4706557]
[1745468073587,0.0011,92697.0,92696.0,0.3628]
[1745468073789,0.0011,92697.0,92696.0,0.4706557]
[1745468083297,0.0326,92709.0,92708.0,0.1078418]
[1745468083493,0.0807482,92712.0,92711.0,0.1078383]
[1745468084494,0.0807482,92712.0,92711.0,0.1375383]
[1745468085203,0.1136482,92712.0,92711.0,0.1355383]
[1745468086691,0.0329,92712.0,92711.0,0.1355383]
[1745468087794,0.001,92712.0,92711.0,0.1355383]
[1745468088389,0.001,92712.0,92711.0,0.1465312]
[1745468089298,0.0314,92712.0,92711.0,0.1355383]
[1745468092103,0.0314,92712.0,92711.0,0.1048383]
[1745468095699,0.0314,92712.0,92711.0,0.1348383]
[1745468099015,0.1078406,92709.0,92708.0,0.00028]
[1745468099406,0.1078429,92707.0,92706.0,0.1617632]
[1745468099598,0.4686429,92707.0,92706.0,0.1617632]
[1745468100000,0.5338429,92707.0,92706.0,0.1617632]
[1745468100311,0.7058429,92707.0,92706.0,0.0539219]
[1745468100609,0.1078464,92704.0,92703.0,0.00028]
[1745468100806,0.1078581,92695.0,92694.0,0.1078563]
[1745468101005,0.4147268,92698.0,92697.0,0.1078546]
[1745468101308,0.4686534,92698.0,92697.0,0.1078546]
[1745468101611,0.3608,92698.0,92697.0,0.1078546]
[1745468102301,0.3915,92698.0,92697.0,0.1078546]
[1745468102715,0.3915,92698.0,92697.0,0.1108546]
[1745468103510,0.13481748,92705.0,92704.0,0.1078464]
[1745468104011,0.13481748,92705.0,92704.0,0.4686464]
[1745468105303,0.13481748,92705.0,92704.0,0.4696464]
[1745468106411,0.08129713,92714.0,92713.0,0.107836]
[1745468106707,0.08129713,92714.0,92713.0,0.468636]
[1745468106913,0.18913193,92714.0,92713.0,0.468636]
[1745468107410,0.18913193,92714.0,92713.0,0.533036]
[1745468108908,0.18913193,92714.0,92713.0,0.534036]
[1745468109312,0.18913193,92714.0,92713.0,0.4262]
[1745468109507,0.18913193,92714.0,92713.0,0.3618]
[1745468110209,0.36113193,92714.0,92713.0,0.108836]
[1745468110509,0.2798348,92714.0,92713.0,0.108836]
[1745468110707,0.172,92714.0,92713.0,0.108836]
[1745468111215,0.1078338,92715.0,92714.0,0.1078348]
[1745468111410,0.0322,92718.0,92717.0,0.1078313]
[1745468111611,0.0322,92718.0,92715.0,0.0539163]
[1745468111612,0.08129713,92719.0,92718.0,0.1078301]
[1745468112110,0.0052,92728.0,92725.0,0.107822]
[1745468112809,0.21621697,92726.0,92725.0,0.107822]
[1745468113204,0.10839617,92726.0,92725.0,0.140822]
[1745468113403,0.13889617,92726.0,92725.0,0.171922]
[1745468113604,0.13889617,92726.0,92725.0,0.173922]
[1745468114203,0.27711697,92726.0,92725.0,0.038]
[1745468114412,0.27711697,92726.0,92725.0,0.005]
[1745468114612,0.27711697,92726.0,92725.0,0.112822]
[1745468114908,0.27711697,92726.0,92725.0,0.005]
[1745468115113,0.44911697,92726.0,92725.0,0.005]
[1745468115313,0.107829,92719.0,92718.0,0.00028]
[1745468115513,0.1078453,92705.0,92704.0,0.032]
[1745468115712,0.1078453,92705.0,92704.0,0.1078459]
[1745468116105,0.1078453,92705.0,92704.0,0.1382459]
[1745468116308,0.1078464,92704.0,92699.0,0.0539257]
[1745468116515,0.1078464,92704.0,92701.0,0.0539248]
[1745468116715,0.1078464,92704.0,92703.0,0.4686476]
[1745468117218,0.1383464,92704.0,92703.0,0.4686476]
[1745468117407,0.1687464,92704.0,92703.0,0.4686476]
[1745468117720,0.1687464,92704.0,92703.0,0.5044476]
[1745468118315,0.1687464,92704.0,92703.0,0.004]
[1745468118316,0.5295464,92704.0,92703.0,0.004]
[1745468118614,0.5295464,92704.0,92703.0,0.007]
[1745468119114,0.7015464,92704.0,92703.0,0.003]
[1745468119319,0.7015464,92704.0,92703.0,0.005]
[1745468119515,0.7015464,92704.0,92703.0,0.1128476]
[1745468119706,0.7015464,92704.0,92703.0,0.1108476]
[1745468119910,0.7015464,92704.0,92703.0,0.1118476]
[1745468120915,0.71364646,92704.0,92703.0,0.1118476]
[1745468121508,0.6710464,92704.0,92703.0,0.1118476]
[1745468121810,0.6710464,92704.0,92703.0,0.1426476]
[1745468122313,0.4990464,92704.0,92703.0,0.1426476]
[1745468122916,0.61912052,92704.0,92703.0,0.002]
[1745468123113,0.82132052,92704.0,92703.0,0.1118476]
[1745468124913,0.82132052,92704.0,92703.0,0.004]
[1745468125114,0.1078802,92675.0,92674.0,0.032]
[1745468125413,0.0539393,92677.0,92676.0,0.107879]
[1745468126015,0.0539393,92677.0,92676.0,0.140079]
[1745468126812,0.0539393,92677.0,92676.0,0.0322]
[1745468127119,0.0848393,92677.0,92676.0,0.0402]
[1745468127315,0.1156393,92677.0,92676.0,0.0402]
[1745468127516,0.1156393,92677.0,92676.0,0.008]
[1745468127823,0.0848393,92677.0,92676.0,0.124879]
[1745468128025,0.0848393,92677.0,92676.0,0.156379]
[1745468128420,0.0848393,92677.0,92676.0,0.152379]
[1745468128813,0.09277938,92677.0,92676.0,0.152379]
[1745468129017,0.09277938,92677.0,92676.0,0.147379]
[1745468131828,0.76911521,92677.0,92622.0,0.3608]
[1745468132015,0.1079209,92640.0,92639.0,0.0302]
[1745468132217,0.1079209,92640.0,92639.0,0.0625]
[1745468132715,0.1079244,92637.0,92622.0,0.3608]
[1745468132919,0.1079244,92637.0,92634.0,0.0333]
[1745468133622,0.7216,92642.0,92638.0,0.0539612]
[1745468133825,0.7755594,92642.0,92641.0,0.1079198]
[1745468134531,0.7755594,92642.0,92639.0,0.1490606]
[1745468134532,0.1079209,92640.0,92639.0,0.2030216]
[1745468134731,0.1079209,92640.0,92639.0,0.0333]
[1745468135026,0.1079244,92637.0,92627.0,0.21940467]
[1745468135325,0.1079244,92637.0,92636.0,0.00507949]
[1745468135928,0.1079244,92637.0,92636.0,0.00107949]
[1745468136132,0.1079244,92637.0,92636.0,0.00507949]
[1745468136426,0.2799244,92637.0,92636.0,0.00907949]
[1745468139329,0.1079244,92637.0,92636.0,0.00907949]
[1745468141224,0.7216,92642.0,92641.0,0.1079198]
[1745468141425,0.8295186,92642.0,92641.0,0.1079198]
[1745468142332,0.8295186,92642.0,92641.0,0.1119198]
[1745468142526,0.8295186,92642.0,92641.0,0.1159198]
[1745468144521,0.8295186,92642.0,92641.0,0.008]
[1745468144727,0.8607186,92642.0,92641.0,0.008]
[1745468146832,0.8295186,92642.0,92641.0,0.1159198]
[1745468153337,0.8295186,92642.0,92641.0,0.008]
[1745468153542,0.1079233,92638.0,92637.0,0.0326]
[1745468154240,0.1079244,92637.0,92636.0,0.00107949]
[1745468154540,0.1758244,92637.0,92636.0,0.00107949]
[1745468155541,0.1758244,92637.0,92636.0,0.00607949]
[1745468156735,0.1758244,92637.0,92636.0,0.01007949]
[1745468159139,0.1079594,92607.0,92606.0,0.00107984]
[1745468159339,0.4687594,92607.0,92606.0,0.00107984]
[1745468159545,0.4687594,92607.0,92606.0,0.03507984]
[1745468160144,0.36905381,92607.0,92606.0,0.14304044]
[1745468160334,0.3608,92607.0,92606.0,0.31504044]
[1745468160539,0.4697594,92607.0,92606.0,0.21707984]
[1745468160936,0.47884963,92607.0,92606.0,0.26077984]
[1745468161241,0.47784963,92607.0,92606.0,0.08577984]
[1745468161436,0.47684963,92607.0,92606.0,0.07677984]
[1745468161643,0.47684963,92607.0,92606.0,0.08277984]
[1745468161845,0.36889023,92607.0,92606.0,0.19074044]
[1745468162140,0.3608,92607.0,92606.0,0.36274044]
[1745468162748,0.3608,92618.0,92617.0,0.1079477]
[1745468163248,0.3608,92618.0,92617.0,0.2799477]
[1745468163740,0.3608,92618.0,92617.0,0.3496477]
[1745468163940,0.3608,92618.0,92617.0,0.3516477]
[1745468164140,0.3608,92618.0,92617.0,0.3536477]
[1745468165547,0.10839617,92626.0,92625.0,0.1079384]
[1745468165933,0.10839617,92626.0,92625.0,0.21589839]
[1745468166139,0.10839617,92626.0,92625.0,0.38789839]
[1745468166443,0.10839617,92626.0,92625.0,0.45759839]
[1745468166642,0.10839617,92626.0,92625.0,0.45859839]
[1745468168451,0.3608,92636.0,92635.0,0.1079268]
[1745468168944,0.4687256,92636.0,92635.0,0.1079268]
[1745468169146,0.4687256,92636.0,92635.0,0.2799268]
[1745468169346,0.4687256,92636.0,92635.0,0.3471268]
[1745468169750,0.4697256,92636.0,92635.0,0.3471268]
[1745468170152,0.4717256,92636.0,92635.0,0.3471268]
[1745468170654,0.4707256,92636.0,92635.0,0.3471268]
[1745468171048,0.470748,92636.0,92600.0,0.23103128]
[1745468171249,0.1079349,92628.0,92627.0,0.0333]
[1745468171440,0.4687349,92628.0,92627.0,0.0333]
[1745468171648,0.1079431,92621.0,92620.0,0.0327]
[1745468172961,0.1079431,92621.0,92620.0,0.0347]
[1745468173160,0.1424431,92621.0,92620.0,0.0347]
[1745468173361,0.15432683,92621.0,92620.0,0.0347]
[1745468173563,0.15432683,92621.0,92620.0,0.0357]
[1745468173859,0.1424431,92621.0,92620.0,0.0357]
[1745468178154,0.8640431,92621.0,92620.0,0.003]
[1745468189964,0.3608,92623.0,92621.0,0.0539715]
[1745468190165,0.3608,92623.0,92622.0,0.2325124]
[1745468190363,0.3608,92623.0,92622.0,0.1245705]
[1745468192262,0.3608,92623.0,92622.0,0.1275705]
[1745468193069,0.3608,92623.0,92622.0,0.1285705]
[1745468193380,0.3608,92623.0,92622.0,0.1295705]
[1745468195071,0.3608,92623.0,92622.0,0.1265705]
[1745468195271,0.3608,92623.0,92622.0,0.1295705]
[1745468195879,0.3608,92623.0,92622.0,0.1245705]
[1745468196079,0.3608,92623.0,92622.0,0.1295705]
[1745468196383,0.3608,92623.0,92622.0,0.1275705]
[1745468196565,0.3608,92623.0,92622.0,0.1295705]
[1745468197670,0.3608,92623.0,92622.0,0.1305705]
[1745468197867,0.3608,92623.0,92622.0,0.0766]
[1745468198078,0.4687407,92623.0,92622.0,0.0766]
[1745468198267,0.48048703,92623.0,92622.0,0.0766]
[1745468198474,0.48048703,92623.0,92622.0,0.0404]
[1745468199077,0.48048703,92623.0,92622.0,0.003]
[1745468199279,0.48048703,92623.0,92622.0,0.005]
[1745468199482,0.48048703,92623.0,92622.0,0.1129419]
[1745468199483,0.4687407,92623.0,92622.0,0.1129419]
[1745468199675,0.3608,92623.0,92622.0,0.004]
[1745468199875,0.3608,92623.0,92622.0,0.1119419]
[1745468200781,0.3608,92623.0,92622.0,0.1816419]
[1745468201868,0.4687407,92623.0,92622.0,0.1826419]
[1745468202969,0.1079594,92607.0,92600.0,0.1]
[1745468203168,0.8295594,92607.0,92603.0,0.1079635]
[1745468203369,0.8295594,92607.0,92604.0,0.0352]
[1745468203781,0.0539808,92606.0,92600.0,0.1]
[1745468203971,0.1079664,92601.0,92600.0,0.1]
[1745468204776,0.1079664,92601.0,92600.0,0.2079676]
[1745468204973,0.1416664,92601.0,92600.0,0.2079676]
[1745468205380,0.1426664,92601.0,92600.0,0.2149676]
[1745468205773,0.1426664,92601.0,92600.0,0.107]
[1745468205968,0.1426664,92601.0,92600.0,0.0123]
[1745468206176,0.1426664,92601.0,92600.0,0.0173]
[1745468206568,0.1426664,92601.0,92600.0,0.1252676]
[1745468207772,0.1426664,92601.0,92600.0,0.0173]
[1745468209275,0.1089664,92601.0,92600.0,0.052]
[1745468210178,0.1089664,92601.0,92600.0,0.1599676]
[1745468210383,0.1089664,92601.0,92600.0,0.052]
[1745468211480,0.1420664,92601.0,92600.0,0.052]
[1745468212687,0.1420664,92601.0,92600.0,0.1599676]
[1745468214078,0.1420664,92601.0,92600.0,0.052]
[1745468214788,0.1420664,92601.0,92600.0,0.1599676]
[1745468218281,0.1420664,92601.0,92600.0,0.052]
[1745468218486,0.0539846,92599.0,92559.0,0.3608]
[1745468218675,0.1620202,92562.0,92561.0,0.108013]
[1745468218878,0.414806,92562.0,92561.0,0.108013]
[1745468219282,0.1080165,92558.0,92557.0,0.0677]
[1745468219475,0.1080189,92556.0,92555.0,0.16489021]
[1745468219678,0.1080259,92550.0,92549.0,0.21940467]
[1745468219877,0.4688259,92550.0,92549.0,0.21940467]
[1745468221880,0.4688259,92550.0,92549.0,0.34773167]
[1745468221881,0.3608,92550.0,92549.0,0.34773167]
[1745468222089,0.4688259,92550.0,92549.0,0.34773167]
[1745468222390,0.5051259,92550.0,92549.0,0.34973167]
[1745468223387,0.5051259,92550.0,92549.0,0.24170467]
[1745468223777,0.5051259,92550.0,92549.0,0.0223]
[1745468223983,0.5051259,92550.0,92549.0,0.005]
[1745468224190,0.5393259,92550.0,92549.0,0.005]
[1745468225792,0.5051259,92550.0,92549.0,0.005]
[1745468227690,0.505152,92550.0,92372.0,1.43621637]
[1745468227892,0.1080644,92517.0,92503.0,0.07]
[1745468228186,0.4688644,92517.0,92516.0,0.12644649]
[1745468229095,0.001,92517.0,92516.0,0.20444649]
[1745468229592,0.108057,92524.0,92523.0,0.1080574]
[1745468229983,0.468857,92524.0,92523.0,0.1253574]
[1745468230189,0.468857,92524.0,92523.0,0.1959574]
[1745468231302,0.3608,92532.0,92531.0,0.1080481]
[1745468231587,0.4958975,92543.0,92542.0,0.1080352]
[1745468231588,0.3608,92543.0,92542.0,0.1080352]
[1745468231781,0.3608,92543.0,92542.0,0.1253352]
[1745468231782,0.4688341,92543.0,92542.0,0.1253352]
[1745468232490,0.4688341,92543.0,92542.0,0.1924352]
[1745468232693,0.4718341,92543.0,92542.0,0.1924352]
[1745468233492,0.3638,92543.0,92542.0,0.1924352]
[1745468233684,0.003,92543.0,92542.0,0.1924352]
[1745468234689,0.00277117,92543.0,92542.0,0.1924352]
[1745468238095,0.3608,92554.0,92553.0,0.1080224]
[1745468238590,0.3608,92554.0,92553.0,0.1253224]
[1745468238991,0.3608,92554.0,92553.0,0.1951224]
[1745468239290,0.3638,92554.0,92553.0,0.1961224]
[1745468240390,0.3668,92554.0,92553.0,0.1961224]
[1745468244496,0.00162211,92576.0,92575.0,0.1079967]
[1745468244687,0.00162211,92576.0,92575.0,0.1252967]
[1745468245089,0.10961761,92576.0,92575.0,0.0173]
[1745468245297,0.10961761,92576.0,92575.0,0.0333]
[1745468245494,0.1080095,92565.0,92564.0,0.1080089]
[1745468245695,0.1080095,92565.0,92564.0,0.1253089]
[1745468246690,0.1080095,92565.0,92564.0,0.0866]
[1745468246890,0.1080095,92565.0,92564.0,0.1946095]
[1745468247090,0.1080095,92565.0,92564.0,0.0866]
[1745468248501,0.1080095,92565.0,92563.0,0.1080104]
[1745468248502,0.0540081,92559.0,92546.0,0.0540152]
[1745468248799,0.1620265,92557.0,92556.0,0.0173]
[1745468249001,0.1080224,92553.0,92552.0,0.0327]
[1745468249397,0.1080224,92553.0,92552.0,0.05]
[1745468249601,0.1080224,92553.0,92552.0,0.1580233]
[1745468251099,0.1080224,92553.0,92552.0,0.1600233]
[1745468251493,0.1413224,92553.0,92552.0,0.1600233]
[1745468251698,0.1413224,92553.0,92552.0,0.1640233]
[1745468254605,0.1413224,92553.0,92552.0,0.056]
[1745468254906,0.1413224,92553.0,92552.0,0.0233]
[1745468255498,0.1413224,92553.0,92552.0,0.006]
[1745468258716,0.1525926,92553.0,92552.0,0.006]
[1745468260115,0.1525926,92553.0,92542.0,0.3608]
[1745468260116,0.1080341,92543.0,92542.0,0.3608]
[1745468260905,0.1769341,92543.0,92542.0,0.3608]
[1745468261409,0.1769341,92543.0,92542.0,0.005]
[1745468262519,0.1779341,92543.0,92542.0,0.009]
[1745468268307,0.001,92543.0,92542.0,0.009]
[1745468268608,0.001,92543.0,92542.0,0.4951352]
[1745468269417,0.001,92543.0,92542.0,0.5658352]
[1745468273922,0.1090341,92543.0,92542.0,0.5658352]
[1745468274122,0.001,92543.0,92542.0,0.5658352]
[1745468274312,0.1090341,92543.0,92542.0,0.5658352]
[1745468274711,0.1090341,92543.0,92542.0,0.4578]
[1745468275827,0.1090341,92543.0,92542.0,0.5658352]
[1745468278631,0.1090341,92543.0,92542.0,0.2050352]
[1745468278924,0.1090341,92543.0,92542.0,0.009]
[1745468279220,0.5037341,92543.0,92542.0,0.009]
[1745468281229,0.4698341,92543.0,92542.0,0.009]
[1745468282128,0.1090341,92543.0,92542.0,0.009]
[1745468282524,0.1438341,92543.0,92542.0,0.009]
[1745468283027,0.1438341,92543.0,92542.0,0.0263]
[1745468283424,0.0358,92543.0,92542.0,0.0263]
[1745468283618,0.001,92543.0,92542.0,0.1343352]
[1745468284823,0.1090341,92543.0,92542.0,0.0263]
[1745468285035,0.1457341,92543.0,92542.0,0.0263]
[1745468286024,0.1457341,92543.0,92542.0,0.0997]
[1745468286224,0.1457341,92543.0,92542.0,0.2077352]
[1745468288932,0.1457341,92543.0,92542.0,0.0997]
[1745468290731,0.1792341,92543.0,92542.0,0.0997]
[1745468291031,0.1792341,92543.0,92542.0,0.0263]
[1745468292128,0.1080422,92536.0,92535.0,0.0682]
[1745468292518,0.1080422,92536.0,92535.0,0.0855]
[1745468293819,0.1090422,92536.0,92535.0,0.0915]
[1745468294033,0.1100422,92536.0,92535.0,0.0955]
[1745468294834,0.1090422,92536.0,92535.0,0.0575]
[1745468295036,0.1080644,92517.0,92510.0,0.3608]
[1745468295332,0.1080644,92517.0,92511.0,0.1063]
[1745468295521,0.1080644,92517.0,92516.0,0.01838089]
[1745468295926,0.1438644,92517.0,92516.0,0.01838089]
[1745468296432,0.0358,92517.0,92516.0,0.12644649]
[1745468296623,0.108061,92520.0,92519.0,0.1080609]
[1745468296826,0.001,92536.0,92519.0,0.4313]
[1745468297127,0.0358,92531.0,92530.0,0.1080492]
[1745468297532,0.0358,92531.0,92530.0,0.1253492]
[1745468297728,0.0358,92531.0,92530.0,0.1933492]
[1745468298621,0.1438481,92531.0,92530.0,0.0853]
[1745468298821,0.1448481,92531.0,92530.0,0.0863]
[1745468299428,0.1448481,92531.0,92530.0,0.1943492]
[1745468299627,0.15310973,92531.0,92530.0,0.1943492]
[1745468300036,0.15610973,92531.0,92530.0,0.1953492]
[1745468301929,0.15610973,92531.0,92530.0,0.0873]
[1745468302128,0.15610973,92531.0,92530.0,0.1953492]
[1745468302634,0.04806163,92531.0,92530.0,0.1953492]
[1745468303037,0.15610973,92531.0,92530.0,0.1953492]
[1745468304032,0.15310973,92531.0,92530.0,0.1943492]
[1745468304337,0.16310973,92531.0,92530.0,0.069]
[1745468304633,0.15710973,92531.0,92530.0,0.068]
[1745468304931,0.15810973,92531.0,92530.0,0.001]
[1745468305233,0.16210973,92531.0,92530.0,0.001]
[1745468305923,0.16110973,92531.0,92530.0,0.001]
[1745468306128,0.1080574,92523.0,92522.0,0.1080585]
[1745468306523,0.1080574,92523.0,92522.0,0.0173]
[1745468306936,0.1796574,92523.0,92522.0,0.1253586]
[1745468307932,0.1816574,92523.0,92522.0,0.1253586]
[1745468308439,0.1866574,92523.0,92522.0,0.1253586]
[1745468309137,0.1866574,92523.0,92522.0,0.0173]
[1745468309340,0.1916574,92523.0,92522.0,0.0183]
[1745468309538,0.1916574,92523.0,92522.0,0.1263586]
[1745468309933,0.20173343,92523.0,92522.0,0.0183]
[1745468310135,0.19673343,92523.0,92522.0,0.0183]
[1745468310329,0.20173343,92523.0,92522.0,0.0183]
[1745468310935,0.20173343,92523.0,92522.0,0.0173]
[1745468311137,0.20173343,92523.0,92522.0,0.0183]
[1745468311635,0.42463603,92523.0,92473.0,0.3608]
[1745468311842,0.1080983,92488.0,92481.0,0.0343]
[1745468312136,0.2800983,92488.0,92481.0,0.0343]
[1745468312342,0.2800983,92488.0,92474.0,0.0356]
[1745468312528,0.2800983,92488.0,92486.0,0.00108124]
[1745468312730,0.36069907,92488.0,92486.0,0.00108124]
[1745468313127,0.18869907,92488.0,92486.0,0.00108124]
[1745468314435,0.29882307,92488.0,92487.0,0.00840614]
[1745468315546,0.19069907,92488.0,92487.0,0.00840614]
[1745468315844,0.1445983,92488.0,92487.0,0.11650564]
[1745468316027,0.1445983,92488.0,92487.0,0.07660614]
[1745468316829,0.1445983,92488.0,92487.0,0.00840614]
[1745468317544,0.2255983,92488.0,92487.0,0.00840614]
[1745468319738,0.2255983,92488.0,92487.0,0.04300614]
[1745468320246,0.3608,92494.0,92487.0,0.04300614]
[1745468320429,1e-08,92508.0,92494.0,0.0540452]
[1745468320630,0.0540221,92535.0,92507.0,0.4148379]
[1745468320832,0.16190642,92537.0,92525.0,0.13103128]
[1745468321031,0.16190642,92537.0,92536.0,0.1080422]
[1745468321342,0.16190642,92537.0,92536.0,0.01151058]
[1745468321542,0.26994752,92537.0,92536.0,0.01151058]
[1745468321841,0.16190642,92537.0,92536.0,0.11955278]